[Event "Lueneburg Open-B 2019"]
[Site "Lueneburg"]
[Date "2019.08.06"]
[Round "4.12"]
[White "David, Martin"]
[Black "Krause, Holger"]
[Result "0-1"]
[ECO "C36"]
[WhiteElo "1494"]
[BlackElo "1639"]
[Annotator "NA"]
[PlyCount "66"]
[EventDate "2019.08.03"]
[EventType "swiss"]
[EventCountry "GER"]
[SourceTitle "playchess.com"]
[Source "ChessBase"]
[SourceQuality "1"]
[TimeControl "40/5400+30:1800+30"]

1. e4 {[%emt 0:00:00]} e5 {[%emt 0:00:00]} 2. f4 {[%emt 0:00:00]} exf4 {[%emt 0:00:00]} 3. Nf3 {[%emt 0:00:00]} Ne7 {[%emt 0:00:39]} 4. d4 {[%emt 0:00:52]} d5 {[%emt 0:01:44]} 5. exd5 $15 {[%emt 0:04:50]} Nxd5 {[%emt 0:03:07]} 6. Be2 {[%emt 0:02:59]} Bd6 {[%emt 0:05:27]} 7. O-O {[%emt 0:00:36]} O-O {[%emt 0:03:24]} 8. c4 {[%emt 0:01:03]} Nf6 {[%emt 0:03:45]} 9. c5 {[%emt 0:00:56]} Be7 {[%emt 0:00:10]} 10. Bxf4 {[%emt 0:01:16]} Nd5 {[%emt 0:02:04]} 11. Qd2 {[%emt 0:03:02]} Nc6 {[%emt 0:04:42]} 12. Ne5 {[%emt 0:04:27]} Nxf4 {[%emt 0:02:10]} 13. Nxc6 {[%emt 0:01:21]} Nxe2+ {[%emt 0:00:40]} 14. Qxe2 {[%emt 0:00:19]} bxc6 {[%emt 0:00:15]} 15. Qe4 {[%emt 0:01:31]} Bf6 {[%emt 0:02:21]} 16. Kh1 {[%emt 0:00:13]} Qd5 {[%emt 0:01:39]} 17. Qc2 {[%emt 0:02:01]} Qxd4 {[%emt 0:01:00]} 18. Nc3 {[%emt 0:03:26]} Qxc5 {[%emt 0:01:38]} 19. Rf3 {[%emt 0:00:28]} Re8 {[%emt 0:02:34]} 20. Raf1 {[%emt 0:01:37]} Re3 {[%emt 0:04:59]} 21. Rf4 {[%emt 0:00:44]} Be6 {[%emt 0:03:49]} 22. Qf2 {[%emt 0:01:33]} Bxc3 {[%emt 0:07:34]} 23. Rxf7 {[%emt 0:01:30]} Bf6 {[%emt 0:01:15]} 24. Rxf6 {[%emt 0:01:07]} gxf6 {[%emt 0:00:14]} 25. b4 {[%emt 0:01:17]} Qe5 {[%emt 0:00:55]} 26. h3 {[%emt 0:01:57]} Re2 {[%emt 0:01:31]} 27. Qf3 {[%emt 0:00:26]} Re1 {[%emt 0:01:58]} 28. Rxe1 {[%emt 0:00:52]} Qxe1+ {[%emt 0:00:06]} 29. Kh2 {[%emt 0:00:03]} Qe5+ {[%emt 0:00:46]} 30. Kh1 {[%emt 0:00:59]} Rd8 {[%emt 0:00:52]} 31. a3 {[%emt 0:00:18]} Rd2 {[%emt 0:01:26]} 32. a4 {[%emt 0:00:36]} Re2 {[%emt 0:03:29]} 33. Kg1 {[%emt 0:00:40]} Ra2 {[%emt 0:40:17]} 0-1

[Event "Lueneburg Open-B 2019"]
[Site "Lueneburg"]
[Date "2019.08.06"]
[Round "4.13"]
[White "Levink, Clemens"]
[Black "Goldmann, David"]
[Result "0-1"]
[ECO "B40"]
[WhiteElo "1719"]
[BlackElo "1403"]
[Annotator "NA"]
[PlyCount "100"]
[EventDate "2019.08.03"]
[EventType "swiss"]
[EventCountry "GER"]
[SourceTitle "playchess.com"]
[Source "ChessBase"]
[SourceQuality "1"]
[TimeControl "40/5400+30:1800+30"]

1. e4 {[%emt 0:00:00]} c5 {[%emt 0:00:00]} 2. Nf3 {[%emt 0:00:00]} e6 {[%emt 0:00:00]} 3. c3 {[%emt 0:00:00]} g6 {[%emt 0:00:21]} 4. d4 {[%emt 0:00:45]} d5 {[%emt 0:00:15]} 5. exd5 {[%emt 0:01:03]} exd5 {[%emt 0:00:18]} 6. Bb5+ {[%emt 0:03:55]} Bd7 {[%emt 0:00:40]} 7. Qe2+ {[%emt 0:01:36]} Qe7 {[%emt 0:01:33]} 8. Be3 {[%emt 0:04:26]} c4 {[%emt 0:02:15]} 9. Bxd7+ {[%emt 0:00:13]} Nxd7 {[%emt 1:29:08]} 10. O-O {[%emt 0:03:19]} Bh6 {[%emt 0:00:00]} 11. Re1 {[%emt 0:00:21]} Bxe3 {[%emt 0:00:00]} 12. Qxe3 {[%emt 0:04:49]} Qxe3 {[%emt 0:00:00]} 13. Rxe3+ {[%emt 0:00:11]} Kf8 {[%emt 0:00:00]} 14. Nbd2 {[%emt 0:00:52]} Ne7 {[%emt 0:00:00]} 15. Rae1 {[%emt 0:01:31]} Nf5 {[%emt 0:00:00]} 16. R3e2 {[%emt 0:03:34]} h5 {[%emt 0:00:00]} 17. Ne5 {[%emt 0:01:06]} Nb6 {[%emt 0:00:00]} 18. Nf1 {[%emt 0:05:52]} Kg7 {[%emt 0:00:00]} 19. Ng3 {[%emt 1:05:57]} Nd6 {[%emt 0:00:00]} 20. h4 {[%emt 0:00:00]} Rae8 {[%emt 0:00:00]} 21. Kf1 {[%emt 0:00:00]} f6 {[%emt 0:00:00]} 22. Nf3 {[%emt 0:00:00]} Rxe2 {[%emt 0:00:00]} 23. Rxe2 {[%emt 0:00:00]} Re8 {[%emt 0:00:00]} 24. Rc2 {[%emt 0:00:00]} Nd7 {[%emt 0:00:00]} 25. Ne2 {[%emt 0:00:00]} Kh6 {[%emt 0:00:00]} 26. g3 {[%emt 0:00:00]} b5 {[%emt 0:00:00]} 27. Ne1 {[%emt 0:00:00]} Nf5 {[%emt 0:00:00]} 28. Ng2 {[%emt 0:00:00]} g5 {[%emt 0:00:00]} 29. hxg5+ {[%emt 0:00:00]} fxg5 {[%emt 0:00:00]} 30. b4 {[%emt 0:00:00]} Nf6 {[%emt 0:00:00]} 31. Ng1 {[%emt 0:00:00]} Ne4 {[%emt 0:00:00]} 32. Nf3 {[%emt 0:00:00]} Rf8 {[%emt 0:00:00]} 33. Ne5 {[%emt 0:00:00]} Nfxg3+ {[%emt 0:00:00]} 34. Kg1 {[%emt 0:01:30]} Nf5 {[%emt 0:00:00]} 35. f3 {[%emt 0:01:09]} Ned6 {[%emt 0:00:00]} 36. a4 {[%emt 0:00:16]} bxa4 {[%emt 0:00:00]} 37. Ra2 {[%emt 0:00:11]} Nb5 {[%emt 0:00:00]} 38. Rxa4 {[%emt 0:00:06]} Nxc3 {[%emt 0:00:00]} 39. Ra6+ {[%emt 0:00:10]} Kh7 {[%emt 0:00:00]} 40. Rxa7+ {[%emt 0:00:08]} Ng7 {[%emt 0:00:00]} 41. Rd7 {[%emt 0:32:41]} Ne2+ {[%emt 0:06:43]} 42. Kf2 {[%emt 0:00:21]} Nxd4 {[%emt 0:00:07]} 43. Rxd5 {[%emt 0:00:16]} Nge6 {[%emt 0:00:50]} 44. Ne1 {[%emt 0:00:00]} c3 {[%emt 0:00:00]} 45. N1d3 {[%emt 0:00:00]} g4 {[%emt 0:00:00]} 46. f4 {[%emt 0:00:00]} Nxf4 {[%emt 0:00:00]} 47. Nxf4 {[%emt 0:00:00]} Rxf4+ {[%emt 0:00:00]} 48. Ke3 {[%emt 0:00:00]} c2 {[%emt 0:00:00]} 49. Nd3 {[%emt 0:00:00]} Rf3+ {[%emt 0:00:00]} 50. Kxd4 {[%emt 0:00:00]} Rxd3+ {[%emt 0:00:00]} 0-1

[Event "Lueneburg Open-B 2019"]
[Site "Lueneburg"]
[Date "2019.08.06"]
[Round "4.14"]
[White "Kolhoff, Manfred"]
[Black "Schulze, Tim"]
[Result "1-0"]
[ECO "C01"]
[WhiteElo "1616"]
[BlackElo "1481"]
[Annotator "NA"]
[PlyCount "111"]
[EventDate "2019.08.03"]
[EventType "swiss"]
[EventCountry "GER"]
[SourceTitle "playchess.com"]
[Source "ChessBase"]
[SourceQuality "1"]
[TimeControl "40/5400+30:1800+30"]

1. e4 {[%emt 0:00:00]} e6 {[%emt 0:00:15]} 2. d4 {[%emt 0:01:06]} d5 {[%emt 0:00:05]} 3. Nc3 {[%emt 0:00:06]} Nf6 {[%emt 0:00:05]} 4. exd5 {[%emt 0:00:16]} exd5 {[%emt 0:00:15]} 5. Bd3 {[%emt 0:03:07]} Bd6 {[%emt 0:04:24]} 6. Bg5 {[%emt 0:01:18]} c6 {[%emt 0:00:16]} 7. Nf3 {[%emt 0:00:25]} O-O {[%emt 0:00:11]} 8. O-O {[%emt 0:03:19]} Bg4 {[%emt 0:00:31]} 9. Rb1 {[%emt 0:16:54]} Nbd7 {[%emt 0:00:28]} 10. h3 {[%emt 0:00:52]} Bh5 {[%emt 0:00:17]} 11. Be2 {[%emt 0:04:46]} Qc7 {[%emt 0:06:31]} 12. Qc1 {[%emt 0:05:56]} Ne4 {[%emt 0:07:40]} 13. Bd2 {[%emt 0:06:08]} Nxd2 {[%emt 0:08:19]} 14. Qxd2 {[%emt 0:00:29]} Bf4 {[%emt 0:02:01]} 15. Qd1 {[%emt 0:00:14]} Bg6 {[%emt 0:00:24]} 16. Bd3 {[%emt 0:03:40]} Bxd3 {[%emt 0:02:51]} 17. Qxd3 {[%emt 0:00:20]} Rfe8 {[%emt 0:01:07]} 18. Rfe1 {[%emt 0:03:48]} Nf6 {[%emt 0:01:22]} 19. b3 {[%emt 0:09:23]} Bd6 {[%emt 0:03:27]} 20. Ne2 {[%emt 0:02:52]} h6 {[%emt 0:03:45]} 21. c4 {[%emt 0:03:33]} b6 {[%emt 0:04:50]} 22. Rbc1 {[%emt 0:03:17]} dxc4 {[%emt 0:08:21]} 23. bxc4 {[%emt 0:00:38]} Qd7 {[%emt 0:02:08]} 24. Red1 {[%emt 0:02:15]} Rad8 {[%emt 0:04:53]} 25. Kf1 {[%emt 0:05:07]} Re7 {[%emt 0:04:02]} 26. Qb3 {[%emt 0:01:32]} Rde8 {[%emt 0:05:34]} 27. Nc3 {[%emt 0:00:29]} Qf5 {[%emt 0:04:28]} 28. Qb1 {[%emt 0:08:51]} Qa5 {[%emt 0:03:14]} 29. Qa1 {[%emt 0:05:16]} Qf5 {[%emt 0:03:20]} 30. a3 {[%emt 0:00:48]} Ne4 {[%emt 0:00:25]} 31. Nxe4 {[%emt 0:00:19]} Rxe4 {[%emt 0:00:59]} 32. Qc3 {[%emt 0:01:25]} Re2 {[%emt 0:04:12]} 33. Re1 {[%emt 0:03:19]} Rxe1+ {[%emt 0:00:27]} 34. Rxe1 {[%emt 0:00:24]} Rxe1+ {[%emt 0:00:05]} 35. Nxe1 {[%emt 0:00:26]} Qb1 {[%emt 0:00:31]} 36. Ke2 {[%emt 0:00:31]} Qa2+ {[%emt 0:00:12]} 37. Nc2 {[%emt 0:00:40]} Be7 {[%emt 0:00:57]} 38. Kf3 {[%emt 0:01:16]} Bf6 {[%emt 0:00:43]} 39. Nb4 {[%emt 0:01:13]} Qb1 {[%emt 0:00:47]} 40. Nxc6 {[%emt 0:00:29]} Qf5+ {[%emt 0:00:15]} 41. Kg3 {[%emt 0:31:43]} Bh4+ {[%emt 0:34:50]} 42. Kh2 {[%emt 0:00:41]} Qxf2 {[%emt 0:00:16]} 43. Qf3 {[%emt 0:00:00]} Qd2 {[%emt 0:00:00]} 44. Qe4 {[%emt 0:00:00]} Bg5 {[%emt 0:00:00]} 45. Ne7+ {[%emt 0:00:00]} Kf8 {[%emt 0:00:00]} 46. Nd5 {[%emt 0:00:00]} Kg8 {[%emt 0:00:00]} 47. h4 {[%emt 0:00:00]} Bf6 {[%emt 0:01:42]} 48. Nxf6+ {[%emt 0:00:00]} gxf6 {[%emt 0:00:05]} 49. d5 {[%emt 0:00:00]} Kg7 {[%emt 0:05:22]} 50. a4 {[%emt 0:00:00]} a5 {[%emt 0:01:07]} 51. Kh3 {[%emt 0:00:00]} Qd1 {[%emt 0:00:24]} 52. Qg4+ {[%emt 0:00:00]} Qxg4+ {[%emt 0:00:06]} 53. Kxg4 {[%emt 0:00:00]} Kg6 {[%emt 0:01:53]} 54. h5+ {[%emt 0:00:00]} Kg7 {[%emt 0:00:05]} 55. Kf5 {[%emt 0:00:00]} Kf8 {[%emt 0:00:19]} 56. Kxf6 {[%emt 0:00:00]} 1-0

[Event "Lueneburg Open-B 2019"]
[Site "Lueneburg"]
[Date "2019.08.06"]
[Round "4.15"]
[White "Mi, Gufeng"]
[Black "Thomas, Vincent"]
[Result "1-0"]
[ECO "D00"]
[WhiteElo "1564"]
[BlackElo "1975"]
[Annotator "NA"]
[PlyCount "65"]
[EventDate "2019.08.03"]
[EventType "swiss"]
[EventCountry "GER"]
[SourceTitle "playchess.com"]
[Source "ChessBase"]
[SourceQuality "1"]
[TimeControl "40/5400+30:1800+30"]

1. d4 {[%emt 0:01:32]} d5 {[%emt 0:00:36]} 2. Bf4 {[%emt 0:00:09]} c6 {[%emt 0:01:19]} 3. h3 {[%emt 0:02:00]} Nf6 {[%emt 0:00:14]} 4. e3 {[%emt 0:00:42]} Qb6 {[%emt 0:02:52]} 5. Qc1 {[%emt 0:00:54]} Bf5 {[%emt 0:02:47]} 6. Nd2 {[%emt 0:01:17]} e6 {[%emt 0:04:34]} 7. Ngf3 {[%emt 0:00:10]} c5 {[%emt 0:07:35]} 8. c3 {[%emt 0:01:04]} cxd4 {[%emt 0:01:43]} 9. exd4 {[%emt 0:00:32]} Bd6 {[%emt 0:01:41]} 10. Ne5 {[%emt 0:02:24]} h6 {[%emt 0:11:45]} 11. Ndf3 {[%emt 0:00:30]} Nbd7 {[%emt 0:01:59]} 12. Be2 {[%emt 0:00:49]} Be4 {[%emt 0:05:39]} 13. O-O {[%emt 0:01:53]} Bxf3 {[%emt 0:02:53]} 14. Bxf3 {[%emt 0:01:35]} Bc7 {[%emt 0:01:20]} 15. Re1 {[%emt 0:01:19]} Nxe5 {[%emt 0:00:58]} 16. dxe5 {[%emt 0:01:51]} Nd7 {[%emt 0:01:07]} 17. Be3 {[%emt 0:04:09]} Qc6 {[%emt 0:02:19]} 18. Bd4 {[%emt 0:03:15]} Bb6 {[%emt 0:03:57]} 19. Qf4 {[%emt 0:02:53]} Bxd4 {[%emt 0:04:16]} 20. cxd4 {[%emt 0:02:58]} O-O {[%emt 0:02:03]} 21. Rac1 {[%emt 0:02:14]} Qa4 {[%emt 0:01:41]} 22. Rc7 {[%emt 0:03:56]} Nb6 {[%emt 0:02:04]} 23. Bh5 {[%emt 0:04:38]} Nd7 {[%emt 0:03:47]} 24. Re3 {[%emt 0:03:27]} f6 {[%emt 0:05:51]} 25. Rg3 {[%emt 0:05:09]} Kh8 {[%emt 0:02:53]} 26. Qg4 {[%emt 0:03:22]} g5 {[%emt 0:01:42]} 27. Qxe6 {[%emt 0:02:30]} Rad8 {[%emt 0:01:23]} 28. Bg4 {[%emt 0:06:26]} Qxd4 {[%emt 0:02:30]} 29. Rxd7 {[%emt 0:02:58]} Rxd7 {[%emt 0:03:12]} 30. Qxd7 {[%emt 0:01:32]} Qxe5 {[%emt 0:00:17]} 31. Bf5 {[%emt 0:04:31]} Rf7 {[%emt 0:04:40]} 32. Qxf7 {[%emt 0:00:25]} Qxf5 {[%emt 0:00:06]} 33. Re3 {[%emt 0:03:16]} 1-0

[Event "Lueneburg Open-B 2019"]
[Site "Lueneburg"]
[Date "2019.08.06"]
[Round "4.16"]
[White "Hinke, Gerhard"]
[Black "Stolzenwald, Karl-Heinz"]
[Result "0-1"]
[ECO "C55"]
[WhiteElo "1476"]
[BlackElo "1600"]
[Annotator "NA"]
[PlyCount "102"]
[EventDate "2019.08.03"]
[EventType "swiss"]
[EventCountry "GER"]
[SourceTitle "playchess.com"]
[Source "ChessBase"]
[SourceQuality "1"]
[TimeControl "40/5400+30:1800+30"]

1. e4 {[%emt 0:00:00]} e5 {[%emt 0:00:07]} 2. Nf3 {[%emt 0:00:00]} Nc6 {[%emt 0:00:21]} 3. Bc4 {[%emt 0:00:10]} h6 {[%emt 0:00:40]} 4. c3 {[%emt 0:00:18]} Nf6 {[%emt 0:00:08]} 5. d3 {[%emt 0:00:19]} d5 {[%emt 0:00:18]} 6. exd5 {[%emt 0:01:29]} Nxd5 {[%emt 1:31:26]} 7. O-O Be7 8. Qe2 Bg4 {[%emt 0:00:00]} 9. Re1 {[%emt 1:32:14]} Qd6 10. Qe4 {[%emt 0:00:00]} Nf6 {[%emt 0:00:00]} 11. Qe2 {[%emt 0:01:00]} O-O-O {[%emt 0:02:30]} 12. Be3 {[%emt 0:00:00]} Bh5 {[%emt 0:00:00]} 13. b4 {[%emt 0:00:00]} b6 14. Nbd2 {[%emt 0:00:00]} Nd5 {[%emt 0:00:00]} 15. Ne4 {[%emt 0:00:00]} Qg6 16. Rac1 {[%emt 0:02:30]} f5 {[%emt 0:00:00]} 17. Ng3 {[%emt 0:00:00]} f4 {[%emt 0:03:00]} 18. Nh4 fxe3 19. Bxd5 Rxd5 {[%emt 0:00:00]} 20. Nf3 {[%emt 0:00:00]} exf2+ {[%emt 0:00:00]} 21. Kxf2 {[%emt 0:00:00]} Rhd8 {[%emt 0:00:00]} 22. Qe4 {[%emt 0:03:00]} Qf7 23. Qf5+ {[%emt 0:00:00]} Qxf5 {[%emt 0:00:00]} 24. Nxf5 {[%emt 0:00:00]} Bf6 {[%emt 0:00:00]} 25. d4 {[%emt 0:00:00]} exd4 {[%emt 0:00:00]} 26. N5xd4 {[%emt 0:00:00]} Bxf3 27. Nxf3 Nd4 {[%emt 0:00:00]} 28. cxd4 {[%emt 0:00:00]} Bxd4+ {[%emt 0:00:00]} 29. Nxd4 {[%emt 0:00:00]} Rxd4 {[%emt 0:00:00]} 30. a3 {[%emt 0:00:00]} Rd2+ {[%emt 0:00:00]} 31. Re2 {[%emt 0:00:00]} Rf8+ {[%emt 0:00:00]} 32. Ke1 {[%emt 0:00:00]} Rd7 {[%emt 0:00:00]} 33. Rf2 {[%emt 0:00:00]} Rxf2 {[%emt 0:00:00]} 34. Kxf2 {[%emt 0:00:00]} Rd2+ {[%emt 0:00:00]} 35. Kf1 {[%emt 0:00:00]} Rd3 {[%emt 0:00:00]} 36. Ra1 {[%emt 0:00:00]} Kd7 {[%emt 0:00:00]} 37. Ra2 {[%emt 0:00:00]} Rc3 {[%emt 0:00:00]} 38. b5 {[%emt 0:00:00]} c5 {[%emt 0:00:00]} 39. bxc6+ {[%emt 0:08:30]} Kxc6 {[%emt 0:00:00]} 40. a4 {[%emt 0:00:00]} Rc4 {[%emt 0:00:00]} 41. Kf2 {[%emt 0:00:00]} a5 {[%emt 0:00:00]} 42. Ra3 {[%emt 0:00:00]} Kc5 {[%emt 0:00:00]} 43. Rg3 {[%emt 0:00:00]} g5 {[%emt 0:00:00]} 44. Rh3 {[%emt 0:00:00]} Rf4+ {[%emt 0:00:00]} 45. Ke3 {[%emt 0:00:00]} Rf6 {[%emt 0:00:00]} 46. Kd3 {[%emt 0:00:00]} Kb4 {[%emt 0:00:00]} 47. Re3 {[%emt 0:00:00]} Kxa4 {[%emt 0:00:00]} 48. g3 {[%emt 0:00:00]} Rc6 {[%emt 0:00:00]} 49. Re5 {[%emt 0:00:00]} Kb4 {[%emt 0:00:00]} 50. Re4+ {[%emt 0:00:00]} Kb3 {[%emt 0:00:00]} 51. Re1 {[%emt 0:00:00]} Rd6+ {[%emt 0:00:00]} 0-1

[Event "Lueneburg Open-B 2019"]
[Site "Lueneburg"]
[Date "2019.08.06"]
[Round "4.19"]
[White "Rennkamp, David"]
[Black "Rothenberg, Anke"]
[Result "0-1"]
[ECO "B12"]
[WhiteElo "1355"]
[BlackElo "1467"]
[Annotator "NA"]
[PlyCount "51"]
[EventDate "2019.08.03"]
[EventType "swiss"]
[EventCountry "GER"]
[SourceTitle "playchess.com"]
[Source "ChessBase"]
[SourceQuality "1"]
[TimeControl "40/5400+30:1800+30"]

1. e4 {[%emt 0:00:00]} c6 {[%emt 0:00:00]} 2. d4 {[%emt 0:00:00]} d5 {[%emt 0:00:00]} 3. e5 {[%emt 0:00:00]} Bf5 {[%emt 0:00:00]} 4. Nf3 {[%emt 0:00:04]} e6 {[%emt 0:00:03]} 5. Bd3 {[%emt 0:00:22]} Bxd3 {[%emt 1:32:27]} 6. Qxd3 {[%emt 1:32:34]} Ne7 {[%emt 0:00:00]} 7. O-O {[%emt 0:00:00]} Nd7 {[%emt 0:00:00]} 8. Nbd2 {[%emt 0:00:00]} Ng6 {[%emt 0:00:00]} 9. Re1 {[%emt 0:00:00]} c5 {[%emt 0:00:00]} 10. c3 {[%emt 0:00:00]} Be7 {[%emt 0:00:00]} 11. Nf1 {[%emt 0:00:00]} O-O {[%emt 0:00:00]} 12. Ng3 {[%emt 0:00:00]} Qc7 {[%emt 0:00:00]} 13. Bd2 {[%emt 0:00:00]} b6 {[%emt 0:00:00]} 14. Rac1 {[%emt 0:00:00]} f6 {[%emt 0:00:00]} 15. exf6 {[%emt 0:00:00]} Rxf6 {[%emt 0:00:00]} 16. Nh5 {[%emt 0:00:00]} c4 {[%emt 0:00:00]} 17. Nxf6+ {[%emt 0:00:00]} Nxf6 {[%emt 0:00:00]} 18. Qe2 {[%emt 0:00:00]} Ne4 {[%emt 0:00:00]} 19. Be3 {[%emt 0:00:00]} Rf8 {[%emt 0:00:00]} 20. Nd2 {[%emt 0:00:00]} Nf4 {[%emt 0:00:00]} 21. Bxf4 {[%emt 0:00:00]} Rxf4 {[%emt 0:00:00]} 22. Nxe4 {[%emt 0:00:00]} Rxe4 {[%emt 0:00:00]} 23. Qh5 {[%emt 0:00:00]} Rh4 {[%emt 0:00:00]} 24. Qe5 {[%emt 0:00:00]} Bd6 {[%emt 0:00:00]} 25. Qxe6+ {[%emt 0:00:00]} Qf7 {[%emt 0:00:00]} 26. Qxd6 {[%emt 0:00:00]} 0-1

[Event "Lueneburg Open-B 2019"]
[Site "Lueneburg"]
[Date "2019.08.06"]
[Round "4.20"]
[White "Buchinger, Alexis"]
[Black "Rempe, Mieke"]
[Result "1-0"]
[ECO "D02"]
[WhiteElo "1346"]
[BlackElo "1558"]
[Annotator "NA"]
[PlyCount "37"]
[EventDate "2019.08.03"]
[EventType "swiss"]
[EventCountry "GER"]
[SourceTitle "playchess.com"]
[Source "ChessBase"]
[SourceQuality "1"]
[TimeControl "40/5400+30:1800+30"]

1. d4 {[%emt 0:00:00]} Nf6 {[%emt 0:00:00]} 2. Nf3 {[%emt 0:00:00]} d5 {[%emt 0:00:00]} 3. Bf4 {[%emt 0:00:30]} Bf5 {[%emt 0:01:05]} 4. e3 {[%emt 0:00:36]} e6 {[%emt 0:00:56]} 5. c4 {[%emt 0:00:29]} Bxb1 {[%emt 0:01:51]} 6. Rxb1 {[%emt 0:00:24]} Bb4+ {[%emt 0:00:11]} 7. Ke2 {[%emt 0:01:01]} dxc4 {[%emt 0:01:51]} 8. Ne5 {[%emt 0:00:44]} Nd5 {[%emt 0:05:45]} 9. Qa4+ {[%emt 0:01:31]} c6 {[%emt 0:00:16]} 10. Bg3 {[%emt 0:04:32]} f6 {[%emt 0:08:27]} 11. e4 {[%emt 0:03:19]} fxe5 {[%emt 0:18:13]} 12. exd5 {[%emt 0:00:29]} Qxd5 {[%emt 0:04:08]} 13. Qxb4 {[%emt 0:04:27]} Qe4+ {[%emt 0:00:11]} 14. Kd2 {[%emt 0:00:07]} c5 {[%emt 0:03:23]} 15. Qxc4 {[%emt 0:01:29]} Nc6 {[%emt 0:03:19]} 16. Bd3 {[%emt 0:01:20]} Qxg2 {[%emt 0:00:40]} 17. Qxe6+ {[%emt 1:17:32]} Kf8 {[%emt 0:48:14]} 18. Rbe1 {[%emt 0:00:00]} Re8 {[%emt 0:00:00]} 19. Qf5+ {[%emt 0:00:00]} 1-0

[Event "Lueneburg Open-B 2019"]
[Site "Lueneburg"]
[Date "2019.08.06"]
[Round "4.21"]
[White "Krueger, Dietrich"]
[Black "Hotz, Herbert"]
[Result "0-1"]
[ECO "A48"]
[WhiteElo "1243"]
[BlackElo "1547"]
[Annotator "NA"]
[PlyCount "84"]
[EventDate "2019.08.03"]
[EventType "swiss"]
[EventCountry "GER"]
[SourceTitle "playchess.com"]
[Source "ChessBase"]
[SourceQuality "1"]
[TimeControl "40/5400+30:1800+30"]

1. d4 {[%emt 0:00:02]} Nf6 {[%emt 0:00:00]} 2. Bf4 {[%emt 0:02:36]} g6 {[%emt 0:00:19]} 3. e3 {[%emt 0:01:52]} Bg7 {[%emt 0:00:24]} 4. Bc4 {[%emt 0:06:46]} O-O {[%emt 0:01:31]} 5. Nd2 {[%emt 0:00:47]} d6 {[%emt 0:00:32]} 6. Ngf3 {[%emt 0:00:40]} b6 {[%emt 0:03:03]} 7. e4 {[%emt 1:20:47]} Bb7 {[%emt 1:27:41]} 8. d5 {[%emt 0:00:00]} Nbd7 {[%emt 0:00:00]} 9. h4 {[%emt 0:00:00]} Nh5 {[%emt 0:00:00]} 10. Be3 {[%emt 0:00:00]} Bxb2 {[%emt 0:00:00]} 11. Rb1 {[%emt 0:00:00]} Bg7 {[%emt 0:00:00]} 12. g4 {[%emt 0:00:00]} Nhf6 {[%emt 0:00:00]} 13. h5 {[%emt 0:00:00]} Nxg4 {[%emt 0:00:00]} 14. h6 {[%emt 0:00:00]} Nxe3 {[%emt 0:00:00]} 15. fxe3 {[%emt 0:00:00]} Bh8 {[%emt 0:00:00]} 16. Rg1 {[%emt 0:00:00]} Ne5 {[%emt 0:00:00]} 17. Bd3 {[%emt 0:00:00]} Nxd3+ {[%emt 0:00:00]} 18. cxd3 {[%emt 0:05:30]} e6 {[%emt 0:05:30]} 19. Qb3 {[%emt 0:00:00]} exd5 {[%emt 0:00:00]} 20. exd5 {[%emt 0:00:00]} Re8 {[%emt 0:00:00]} 21. e4 {[%emt 0:00:00]} Qd7 {[%emt 0:00:00]} 22. Kf2 {[%emt 0:00:00]} Bd4+ {[%emt 0:00:00]} 23. Kf1 {[%emt 0:00:00]} Bxg1 {[%emt 0:00:00]} 24. Kxg1 {[%emt 0:03:00]} Qg4+ {[%emt 0:03:00]} 25. Kf2 {[%emt 0:00:00]} Qf4 {[%emt 0:00:00]} 26. Rh1 {[%emt 0:01:00]} Qf6 {[%emt 0:01:00]} 27. Qc4 {[%emt 0:00:00]} Rac8 {[%emt 0:00:00]} 28. d4 {[%emt 0:00:00]} c6 {[%emt 0:00:00]} 29. Qe2 {[%emt 0:00:00]} cxd5 {[%emt 0:00:00]} 30. e5 {[%emt 0:00:00]} dxe5 {[%emt 0:00:00]} 31. dxe5 {[%emt 0:00:00]} Rxe5 {[%emt 0:00:00]} 32. Qxe5 {[%emt 0:00:00]} Qxe5 {[%emt 0:00:00]} 33. Nxe5 {[%emt 0:00:00]} Rc2 {[%emt 0:03:30]} 34. Ke3 {[%emt 0:04:00]} Rxa2 {[%emt 0:00:00]} 35. Rf1 {[%emt 0:00:00]} Ra3+ {[%emt 0:00:00]} 36. Ke2 {[%emt 0:00:00]} Ba6+ {[%emt 0:00:00]} 37. Kf2 {[%emt 0:00:00]} Bxf1 {[%emt 0:00:00]} 38. Kxf1 {[%emt 0:00:00]} Rh3 {[%emt 0:00:00]} 39. Nc6 {[%emt 0:00:00]} Rxh6 {[%emt 0:00:00]} 40. Nxa7 {[%emt 0:00:00]} Rh1+ {[%emt 0:00:00]} 41. Kg2 {[%emt 0:00:00]} Ra1 {[%emt 0:00:00]} 42. Nb5 {[%emt 0:00:00]} Ra2 {[%emt 0:00:00]} 0-1

[Event "Lueneburg Open-B 2019"]
[Site "Lueneburg"]
[Date "2019.08.08"]
[Round "5.1"]
[White "Groth, Matthias"]
[Black "Wiese, Uwe"]
[Result "0-1"]
[ECO "A85"]
[WhiteElo "1737"]
[BlackElo "1737"]
[Annotator "NA RC"]
[PlyCount "58"]
[EventDate "2019.08.03"]
[EventType "swiss"]
[EventCountry "GER"]
[SourceTitle "playchess.com"]
[Source "ChessBase"]
[SourceQuality "1"]
[TimeControl "40/5400+30:1800+30"]

1. d4 {[%emt 0:00:00]} f5 {[%emt 0:00:00]} 2. c4 {[%emt 0:00:00]} Nf6 {[%emt 0:00:00]} 3. Nc3 {[%emt 0:00:00]} e6 {[%emt 0:00:13]} 4. f3 {[%emt 0:00:53]} d5 {[%emt 0:02:12]} 5. Bg5 {[%emt 0:01:00]} Be7 {[%emt 0:08:43]} 6. e3 {[%emt 0:06:34]} O-O {[%emt 0:01:25]} 7. Qb3 {[%emt 0:02:14]} c6 {[%emt 0:01:08]} 8. Bd3 {[%emt 0:01:18]} Nh5 {[%emt 0:01:41]} 9. Bxe7 {[%emt 0:07:24]} Qxe7 {[%emt 0:00:12]} 10. g3 {[%emt 0:01:04]} a5 {[%emt 0:07:30]} 11. Nge2 {[%emt 0:02:11]} dxc4 {[%emt 0:03:45]} 12. Bxc4 {[%emt 0:02:36]} b5 {[%emt 0:00:52]} 13. Bd3 {[%emt 0:01:00]} Ba6 {[%emt 0:02:37]} 14. f4 {[%emt 0:14:33]} Nd7 {[%emt 0:02:03]} 15. h3 {[%emt 0:06:11]} b4 {[%emt 0:05:47]} 16. Bxa6 {[%emt 0:05:13]} bxc3 {[%emt 0:00:58]} 17. Bc4 {[%emt 0:01:44]} cxb2 {[%emt 0:00:58]} 18. Qxb2 {[%emt 0:04:58]} Rfb8 {[%emt 0:04:12]} 19. Qc2 {[%emt 0:01:58]} Nb6 {[%emt 0:08:46]} 20. Kf2 {[%emt 0:03:08]} Nd5 {[%emt 0:14:14]} 21. Rhb1 {[%emt 0:03:14]} Nhf6 {[%emt 0:04:19]} 22. Kf3 {[%emt 0:04:32]} Qa3 {[%emt 0:02:59]} 23. Qd2 {[%emt 0:08:00]} Ne4 {[%emt 0:00:57]} 24. Rxb8+ {[%emt 0:01:37]} Rxb8 {[%emt 0:01:08]} 25. Qd3 {[%emt 0:00:15]} Qb2 {[%emt 0:04:53]} 26. Rc1 {[%emt 0:02:35]} Nd2+ {[%emt 0:09:11]} 27. Kg2 {[%emt 0:06:05]} Nxc4 {[%emt 0:00:27]} 28. Rxc4 {[%emt 0:01:27]} Qxa2 {[%emt 0:01:31]} 29. Rxc6 {[%emt 0:00:38]} Nb4 {[%emt 0:00:26]} 0-1